[Event "*** Titled Tuesday Blitz"]
[Site "Chess.com"]
[Date "2020.11.03"]
[Round "2"]
[White "tdf98pantani"]
[Black "andrzej"]
[Result "1-0"]
[WhiteElo "2684"]
[BlackElo "2384"]
[TimeControl "180+1"]
[EndTime "10:20:36 PST"]
[Termination "tdf98pantani won on time"]

1. d4 {[%clk 0:03:00.9]} 1... Nf6 {[%clk 0:02:59]} 2. c4 {[%clk 0:03:00.2]} 2...
e6 {[%clk 0:02:59.4]} 3. Nc3 {[%clk 0:03:00.2]} 3... Bb4 {[%clk 0:02:59.2]} 4.
Qc2 {[%clk 0:02:58.8]} 4... O-O {[%clk 0:02:58.8]} 5. a3 {[%clk 0:02:56.6]} 5...
Bxc3+ {[%clk 0:02:58.7]} 6. Qxc3 {[%clk 0:02:57]} 6... d6 {[%clk 0:02:52.7]} 7.
Bg5 {[%clk 0:02:56.8]} 7... Nbd7 {[%clk 0:02:49.5]} 8. e3 {[%clk 0:02:55.2]}
8... b6 {[%clk 0:02:49.5]} 9. f3 {[%clk 0:02:55]} 9... Bb7 {[%clk 0:02:49.8]}
10. Bd3 {[%clk 0:02:51.1]} 10... Rc8 {[%clk 0:02:49.5]} 11. Ne2 {[%clk
0:02:50.8]} 11... c5 {[%clk 0:02:49.5]} 12. O-O {[%clk 0:02:44.3]} 12... cxd4
{[%clk 0:02:46.1]} 13. Qxd4 {[%clk 0:02:34.7]} 13... Qc7 {[%clk 0:02:27.9]} 14.
Rac1 {[%clk 0:02:32.8]} 14... Qc5 {[%clk 0:02:20.3]} 15. Bh4 {[%clk 0:02:18.5]}
15... Qxd4 {[%clk 0:02:19]} 16. Nxd4 {[%clk 0:02:14.5]} 16... a6 {[%clk
0:02:11.2]} 17. Rfd1 {[%clk 0:02:11.1]} 17... d5 {[%clk 0:02:06.6]} 18. cxd5
{[%clk 0:02:05.7]} 18... Nxd5 {[%clk 0:02:06.4]} 19. e4 {[%clk 0:02:05.7]} 19...
Nf4 {[%clk 0:01:55.2]} 20. Bf1 {[%clk 0:02:05.4]} 20... Nc5 {[%clk 0:01:31.6]}
21. Bg3 {[%clk 0:01:46.8]} 21... g5 {[%clk 0:01:30]} 22. h4 {[%clk 0:01:45.8]}
22... h6 {[%clk 0:01:23.2]} 23. Bf2 {[%clk 0:01:45.3]} 23... Rfd8 {[%clk
0:01:19]} 24. hxg5 {[%clk 0:01:41]} 24... hxg5 {[%clk 0:01:18.6]} 25. Be3 {[%clk
0:01:38.3]} 25... Kg7 {[%clk 0:01:17.5]} 26. g3 {[%clk 0:01:35.2]} 26... Nh5
{[%clk 0:01:16.1]} 27. Kf2 {[%clk 0:01:32.3]} 27... Kg6 {[%clk 0:01:12.3]} 28.
b4 {[%clk 0:01:25.8]} 28... Na4 {[%clk 0:01:09.8]} 29. Rxc8 {[%clk 0:01:18.3]}
29... Rxc8 {[%clk 0:01:09]} 30. Bd3 {[%clk 0:01:18.1]} 30... Nb2 {[%clk
0:01:03.9]} 31. Rd2 {[%clk 0:01:09.2]} 31... Nxd3+ {[%clk 0:01:01.3]} 32. Rxd3
{[%clk 0:01:10.1]} 32... Nf6 {[%clk 0:00:56]} 33. g4 {[%clk 0:00:59.8]} 33... b5
{[%clk 0:00:55.8]} 34. Nb3 {[%clk 0:00:59.2]} 34... Rc2+ {[%clk 0:00:55.5]} 35.
Ke1 {[%clk 0:00:57.3]} 35... Ra2 {[%clk 0:00:41]} 36. Nc5 {[%clk 0:00:57.1]}
36... Bc6 {[%clk 0:00:35.4]} 37. Nxa6 {[%clk 0:00:48.7]} 37... Nxe4 {[%clk
0:00:27.2]} 38. fxe4 {[%clk 0:00:47.8]} 38... Bxe4 {[%clk 0:00:28.1]} 39. Rc3
{[%clk 0:00:46.6]} 39... f5 {[%clk 0:00:27.2]} 40. Nc5 {[%clk 0:00:45]} 40...
Bd5 {[%clk 0:00:24.4]} 41. Bd2 {[%clk 0:00:32.1]} 41... fxg4 {[%clk 0:00:20]}
42. Re3 {[%clk 0:00:30.5]} 42... Kf5 {[%clk 0:00:18.6]} 43. Bc1 {[%clk 0:00:21]}
43... Bc4 {[%clk 0:00:14.6]} 44. Ne4 {[%clk 0:00:20.1]} 44... e5 {[%clk
0:00:08.8]} 45. Nd6+ {[%clk 0:00:19.7]} 45... Kf6 {[%clk 0:00:08.3]} 46. Nxc4
{[%clk 0:00:17.9]} 46... bxc4 {[%clk 0:00:09.2]} 47. Rc3 {[%clk 0:00:16]} 47...
g3 {[%clk 0:00:08.4]} 48. b5 {[%clk 0:00:16.5]} 48... g2 {[%clk 0:00:08.2]} 49.
Be3 {[%clk 0:00:16.6]} 49... Ra1+ {[%clk 0:00:07.7]} 50. Ke2 {[%clk 0:00:16.1]}
50... g1=Q {[%clk 0:00:07.8]} 51. Bxg1 {[%clk 0:00:16.3]} 51... Rxg1 {[%clk
0:00:08.7]} 52. Rxc4 {[%clk 0:00:16.8]} 52... Rb1 {[%clk 0:00:08.2]} 53. a4
{[%clk 0:00:16.8]} 53... Kf5 {[%clk 0:00:08.8]} 54. Rc6 {[%clk 0:00:13.9]} 54...
Rb3 {[%clk 0:00:08.2]} 55. b6 {[%clk 0:00:13.7]} 55... Ke4 {[%clk 0:00:08.6]}
56. a5 {[%clk 0:00:13.8]} 56... Rb2+ {[%clk 0:00:08.1]} 57. Kd1 {[%clk
0:00:13.8]} 57... g4 {[%clk 0:00:07.5]} 58. Rc2 {[%clk 0:00:10.7]} 58... Rb5
{[%clk 0:00:06.5]} 59. Rc4+ {[%clk 0:00:07.1]} 59... Kd5 {[%clk 0:00:05.9]} 60.
Ra4 {[%clk 0:00:07.2]} 60... g3 {[%clk 0:00:05]} 61. Ke2 {[%clk 0:00:07.7]}
61... g2 {[%clk 0:00:04.4]} 62. Kf2 {[%clk 0:00:08.1]} 62... Rb2+ {[%clk
0:00:04.9]} 63. Kg1 {[%clk 0:00:08.5]} 63... e4 {[%clk 0:00:05.5]} 64. a6 {[%clk
0:00:05]} 64... Rxb6 {[%clk 0:00:04.9]} 65. a7 {[%clk 0:00:05.3]} 65... e3
{[%clk 0:00:02.2]} 66. a8=Q+ {[%clk 0:00:05.5]} 1-0

[Event "*** Titled Tuesday Blitz"]
[Site "Chess.com"]
[Date "2020.11.03"]
[Round "2"]
[White "Man-Chuk"]
[Black "tsaruk_maks"]
[Result "1/2-1/2"]
[WhiteElo "2848"]
[BlackElo "2571"]
[TimeControl "180+1"]
[EndTime "10:20:39 PST"]
[Termination "Game drawn - insufficient material"]

1. d4 {[%clk 0:03:00.7]} 1... Nf6 {[%clk 0:03:00.4]} 2. c4 {[%clk 0:03:00.2]}
2... e6 {[%clk 0:03:00]} 3. Nf3 {[%clk 0:02:59.8]} 3... d5 {[%clk 0:02:58.6]} 4.
Nc3 {[%clk 0:02:59.6]} 4... c5 {[%clk 0:02:58.4]} 5. cxd5 {[%clk 0:02:56.9]}
5... Nxd5 {[%clk 0:02:59.3]} 6. e4 {[%clk 0:02:55]} 6... Nxc3 {[%clk 0:02:59.8]}
7. bxc3 {[%clk 0:02:55.9]} 7... cxd4 {[%clk 0:03:00.7]} 8. cxd4 {[%clk
0:02:56.8]} 8... Bb4+ {[%clk 0:03:01.3]} 9. Bd2 {[%clk 0:02:57.4]} 9... Bxd2+
{[%clk 0:03:01.9]} 10. Qxd2 {[%clk 0:02:58.3]} 10... O-O {[%clk 0:03:02.6]} 11.
Bc4 {[%clk 0:02:59]} 11... b6 {[%clk 0:03:02.2]} 12. O-O {[%clk 0:02:58.3]}
12... Bb7 {[%clk 0:03:02.7]} 13. Rfe1 {[%clk 0:02:53.4]} 13... Nd7 {[%clk
0:03:03.2]} 14. a4 {[%clk 0:02:51.8]} 14... Rc8 {[%clk 0:02:59.1]} 15. Bd3
{[%clk 0:02:49.3]} 15... a5 {[%clk 0:02:53.4]} 16. Rab1 {[%clk 0:02:36.4]} 16...
Qe7 {[%clk 0:02:51.9]} 17. Qe2 {[%clk 0:01:57.3]} 17... Rc3 {[%clk 0:01:54.2]}
18. Rec1 {[%clk 0:01:37]} 18... Rfc8 {[%clk 0:01:31.8]} 19. Rxc3 {[%clk
0:01:36.4]} 19... Rxc3 {[%clk 0:01:32.7]} 20. Ba6 {[%clk 0:01:25.1]} 20... Bc6
{[%clk 0:00:31.4]} 21. Bb5 {[%clk 0:01:10.2]} 21... Bxb5 {[%clk 0:00:30.4]} 22.
Qxb5 {[%clk 0:01:10.3]} 22... h6 {[%clk 0:00:26.4]} 23. h3 {[%clk 0:01:10.1]}
23... Qd6 {[%clk 0:00:16.6]} 24. Rd1 {[%clk 0:00:46.9]} 24... Qc6 {[%clk
0:00:12.1]} 25. Qxc6 {[%clk 0:00:33.9]} 25... Rxc6 {[%clk 0:00:13]} 26. d5
{[%clk 0:00:34.8]} 26... exd5 {[%clk 0:00:13.6]} 27. Rxd5 {[%clk 0:00:35.3]}
27... Nc5 {[%clk 0:00:13.9]} 28. Rd4 {[%clk 0:00:24.9]} 28... Kh7 {[%clk
0:00:11.2]} 29. Ne5 {[%clk 0:00:20.1]} 29... Rc7 {[%clk 0:00:11.4]} 30. Rc4
{[%clk 0:00:16]} 30... Re7 {[%clk 0:00:10.6]} 31. Nc6 {[%clk 0:00:02.8]} 31...
Rxe4 {[%clk 0:00:10.5]} 32. Nxa5 {[%clk 0:00:02.9]} 32... Rxc4 {[%clk
0:00:06.5]} 33. Nxc4 {[%clk 0:00:03.8]} 33... Nxa4 {[%clk 0:00:07.4]} 34. Kf1
{[%clk 0:00:04.5]} 34... Kg6 {[%clk 0:00:06.6]} 35. Ke2 {[%clk 0:00:03.7]} 35...
b5 {[%clk 0:00:06.8]} 36. Nd6 {[%clk 0:00:02.2]} 36... b4 {[%clk 0:00:04.2]} 37.
Kd3 {[%clk 0:00:02.8]} 37... b3 {[%clk 0:00:04.4]} 38. Nc4 {[%clk 0:00:02.6]}
38... Kf5 {[%clk 0:00:04.4]} 39. Nd2 {[%clk 0:00:02.7]} 39... b2 {[%clk
0:00:04.1]} 40. Kc2 {[%clk 0:00:03.6]} 40... Ke5 {[%clk 0:00:02.9]} 41. Nf3+
{[%clk 0:00:02.1]} 41... Ke4 {[%clk 0:00:02.6]} 42. Nd2+ {[%clk 0:00:02.3]}
42... Kd4 {[%clk 0:00:02.2]} 43. Nb3+ {[%clk 0:00:03.2]} 43... Kc4 {[%clk
0:00:01.7]} 44. Nd2+ {[%clk 0:00:04.1]} 44... Kb4 {[%clk 0:00:02.3]} 45. Nb1
{[%clk 0:00:04.6]} 45... Kc4 {[%clk 0:00:01.7]} 46. Nd2+ {[%clk 0:00:04.6]}
46... Kb4 {[%clk 0:00:02.6]} 47. Nb1 {[%clk 0:00:04.9]} 47... h5 {[%clk
0:00:03.5]} 48. h4 {[%clk 0:00:04.9]} 48... g6 {[%clk 0:00:03.7]} 49. f3 {[%clk
0:00:02.1]} 49... f6 {[%clk 0:00:03.9]} 50. g4 {[%clk 0:00:02.7]} 50... Kc4
{[%clk 0:00:02.6]} 51. Nd2+ {[%clk 0:00:02.7]} 51... Kd4 {[%clk 0:00:03]} 52.
gxh5 {[%clk 0:00:03.3]} 52... gxh5 {[%clk 0:00:03.1]} 53. Ne4 {[%clk 0:00:04]}
53... f5 {[%clk 0:00:02.9]} 54. Ng3 {[%clk 0:00:04.7]} 54... f4 {[%clk
0:00:02.3]} 55. Nxh5 {[%clk 0:00:05.2]} 55... Ke3 {[%clk 0:00:03.2]} 56. Nf6
{[%clk 0:00:04.3]} 56... Kxf3 {[%clk 0:00:02.8]} 57. h5 {[%clk 0:00:05]} 57...
b1=Q+ {[%clk 0:00:02.8]} 58. Kxb1 {[%clk 0:00:04.4]} 58... Nc3+ {[%clk
0:00:03.7]} 59. Kc2 {[%clk 0:00:03.9]} 59... Nb5 {[%clk 0:00:03.3]} 60. h6
{[%clk 0:00:01.6]} 60... Nd4+ {[%clk 0:00:04.2]} 61. Kd3 {[%clk 0:00:01.7]}
61... Nc6 {[%clk 0:00:04.4]} 62. h7 {[%clk 0:00:01.6]} 62... Ne5+ {[%clk
0:00:05.3]} 63. Kd4 {[%clk 0:00:01.9]} 63... Nf7 {[%clk 0:00:06.2]} 64. Kd5
{[%clk 0:00:02.2]} 64... Kg2 {[%clk 0:00:05.6]} 65. Ke4 {[%clk 0:00:01.6]} 65...
Ng5+ {[%clk 0:00:05.7]} 66. Kxf4 {[%clk 0:00:01.8]} 66... Nxh7 {[%clk
0:00:06.6]} 1/2-1/2

[Event "*** Titled Tuesday Blitz"]
[Site "Chess.com"]
[Date "2020.11.03"]
[Round "2"]
[White "PauloCesarCosta_sad"]
[Black "Nikolaj_6"]
[Result "1/2-1/2"]
[WhiteElo "2330"]
[BlackElo "2552"]
[TimeControl "180+1"]
[EndTime "10:20:43 PST"]
[Termination "Game drawn by repetition"]

1. Nf3 {[%clk 0:03:00.9]} 1... Nf6 {[%clk 0:02:59.6]} 2. c4 {[%clk 0:03:01.3]}
2... g6 {[%clk 0:02:59.8]} 3. d4 {[%clk 0:03:00.1]} 3... Bg7 {[%clk 0:02:59.7]}
4. Nc3 {[%clk 0:03:00.6]} 4... O-O {[%clk 0:02:59.7]} 5. Bg5 {[%clk 0:03:00]}
5... c5 {[%clk 0:02:59.1]} 6. e3 {[%clk 0:02:37.7]} 6... h6 {[%clk 0:02:54.4]}
7. Bh4 {[%clk 0:02:35.1]} 7... cxd4 {[%clk 0:02:51.3]} 8. exd4 {[%clk
0:02:29.5]} 8... d5 {[%clk 0:02:51.1]} 9. Bxf6 {[%clk 0:02:22.8]} 9... Bxf6
{[%clk 0:02:50.9]} 10. Nxd5 {[%clk 0:02:22.6]} 10... Bg7 {[%clk 0:02:51.1]} 11.
Nc3 {[%clk 0:02:16]} 11... e6 {[%clk 0:02:25.1]} 12. Be2 {[%clk 0:02:08.9]}
12... Nc6 {[%clk 0:02:25.2]} 13. d5 {[%clk 0:02:02]} 13... exd5 {[%clk 0:02:25]}
14. cxd5 {[%clk 0:02:02.9]} 14... Nb4 {[%clk 0:02:21.4]} 15. Qd2 {[%clk
0:02:00.1]} 15... Bf5 {[%clk 0:02:18.6]} 16. O-O {[%clk 0:01:52]} 16... Re8
{[%clk 0:02:14.6]} 17. Rad1 {[%clk 0:01:46.2]} 17... Bxc3 {[%clk 0:01:45.9]} 18.
bxc3 {[%clk 0:01:40.6]} 18... Nxd5 {[%clk 0:01:46]} 19. Bb5 {[%clk 0:01:29.9]}
19... Be6 {[%clk 0:01:35.1]} 20. c4 {[%clk 0:01:22.1]} 20... Nc7 {[%clk
0:01:29.5]} 21. Qxd8 {[%clk 0:01:12.4]} 21... Rexd8 {[%clk 0:01:28.9]} 22. Nd4
{[%clk 0:00:58.6]} 22... a6 {[%clk 0:01:16.1]} 23. Nxe6 {[%clk 0:00:55.8]} 23...
Nxe6 {[%clk 0:01:15.8]} 24. Ba4 {[%clk 0:00:54.9]} 24... Nc5 {[%clk 0:01:15.8]}
25. Bb3 {[%clk 0:00:54.6]} 25... Kf8 {[%clk 0:01:14.7]} 26. Rfe1 {[%clk
0:00:52.9]} 26... Rxd1 {[%clk 0:01:13.4]} 27. Rxd1 {[%clk 0:00:52.7]} 27... Ke7
{[%clk 0:01:10.9]} 28. Kf1 {[%clk 0:00:52.6]} 28... Rc8 {[%clk 0:01:06.1]} 29.
Ke2 {[%clk 0:00:50.5]} 29... Rc7 {[%clk 0:01:05.9]} 30. Rd5 {[%clk 0:00:48.6]}
30... g5 {[%clk 0:01:03.7]} 31. g3 {[%clk 0:00:48.3]} 31... f6 {[%clk
0:00:56.5]} 32. Ke3 {[%clk 0:00:45.6]} 32... b6 {[%clk 0:00:53.8]} 33. h4 {[%clk
0:00:43.2]} 33... a5 {[%clk 0:00:53.4]} 34. hxg5 {[%clk 0:00:42.7]} 34... hxg5
{[%clk 0:00:52.6]} 35. f4 {[%clk 0:00:41.7]} 35... gxf4+ {[%clk 0:00:48.9]} 36.
gxf4 {[%clk 0:00:38.5]} 36... a4 {[%clk 0:00:41]} 37. Bd1 {[%clk 0:00:38]} 37...
Ne6 {[%clk 0:00:37.6]} 38. Bxa4 {[%clk 0:00:31.9]} 38... Rxc4 {[%clk 0:00:36.7]}
39. Rd7+ {[%clk 0:00:20.5]} 39... Kf8 {[%clk 0:00:35]} 40. Bb3 {[%clk
0:00:20.2]} 40... Rc3+ {[%clk 0:00:30.5]} 41. Kd2 {[%clk 0:00:16.9]} 41... Rc6
{[%clk 0:00:30.2]} 42. Bxe6 {[%clk 0:00:13.6]} 42... Rxe6 {[%clk 0:00:31.1]} 43.
Kd3 {[%clk 0:00:07.9]} 43... Ke8 {[%clk 0:00:29.7]} 44. Rh7 {[%clk 0:00:07.6]}
44... Rc6 {[%clk 0:00:24.7]} 45. Ra7 {[%clk 0:00:07.4]} 45... Kd8 {[%clk
0:00:22.9]} 46. Kd4 {[%clk 0:00:06.9]} 46... Rc5 {[%clk 0:00:22.2]} 47. Ke4
{[%clk 0:00:06.9]} 47... f5+ {[%clk 0:00:21.6]} 48. Kd4 {[%clk 0:00:06.2]} 48...
Kc8 {[%clk 0:00:20.8]} 49. a3 {[%clk 0:00:06.3]} 49... Kb8 {[%clk 0:00:20.4]}
50. Rf7 {[%clk 0:00:06.3]} 50... Ra5 {[%clk 0:00:20.5]} 51. Kc4 {[%clk
0:00:05.7]} 51... Ra4+ {[%clk 0:00:19.5]} 52. Kb5 {[%clk 0:00:04.9]} 52... Rxf4
{[%clk 0:00:18.8]} 53. Kxb6 {[%clk 0:00:04.2]} 53... Kc8 {[%clk 0:00:19]} 54.
Kb5 {[%clk 0:00:03.6]} 54... Rf1 {[%clk 0:00:19.1]} 55. a4 {[%clk 0:00:03.8]}
55... f4 {[%clk 0:00:16.4]} 56. a5 {[%clk 0:00:04.1]} 56... Kb8 {[%clk
0:00:16.2]} 57. a6 {[%clk 0:00:03.9]} 57... f3 {[%clk 0:00:15.6]} 58. Kb6 {[%clk
0:00:04.1]} 58... Rb1+ {[%clk 0:00:15.7]} 59. Kc6 {[%clk 0:00:04.4]} 59... Rb3
{[%clk 0:00:15.3]} 60. Kc5 {[%clk 0:00:03.4]} 60... Ka8 {[%clk 0:00:15.1]} 61.
Kc6 {[%clk 0:00:03.3]} 61... Ra3 {[%clk 0:00:14.8]} 62. Kb5 {[%clk 0:00:03.3]}
62... Re3 {[%clk 0:00:13.7]} 63. Kb6 {[%clk 0:00:03.3]} 63... Re6+ {[%clk
0:00:13.4]} 64. Ka5 {[%clk 0:00:03.4]} 64... Re3 {[%clk 0:00:13]} 65. Kb6 {[%clk
0:00:03.7]} 65... Rb3+ {[%clk 0:00:13.2]} 66. Ka5 {[%clk 0:00:04]} 66... Kb8
{[%clk 0:00:13.5]} 67. Re7 {[%clk 0:00:03.2]} 67... f2 {[%clk 0:00:12.8]} 68.
Rf7 {[%clk 0:00:03.6]} 68... Rb2 {[%clk 0:00:13.1]} 69. Ka4 {[%clk 0:00:03.3]}
69... Ka8 {[%clk 0:00:12.4]} 70. Ka5 {[%clk 0:00:03.4]} 70... Re2 {[%clk
0:00:10.4]} 71. Ka4 {[%clk 0:00:03.4]} 71... Re4+ {[%clk 0:00:10]} 72. Ka5
{[%clk 0:00:03.7]} 72... Re2 {[%clk 0:00:10]} 73. Ka4 {[%clk 0:00:03.9]} 73...
Kb8 {[%clk 0:00:10.5]} 74. Ka5 {[%clk 0:00:04]} 74... Rb2 {[%clk 0:00:10.5]} 75.
Ka4 {[%clk 0:00:04]} 75... Kc8 {[%clk 0:00:10.2]} 76. Ka5 {[%clk 0:00:04.3]}
76... Kb8 {[%clk 0:00:09.9]} 1/2-1/2

[Event "*** Titled Tuesday Blitz"]
[Site "Chess.com"]
[Date "2020.11.03"]
[Round "2"]
[White "IMTominho"]
[Black "Lysiak_Poltorak"]
[Result "0-1"]
[WhiteElo "2692"]
[BlackElo "2360"]
[TimeControl "180+1"]
[EndTime "10:20:49 PST"]
[Termination "Lysiak_Poltorak won on time"]

1. d4 {[%clk 0:03:00.9]} 1... Nf6 {[%clk 0:02:59.8]} 2. c4 {[%clk 0:03:00.7]}
2... g6 {[%clk 0:02:59.2]} 3. Nc3 {[%clk 0:03:00.1]} 3... d5 {[%clk 0:02:59.8]}
4. Nf3 {[%clk 0:02:58.8]} 4... Bg7 {[%clk 0:02:59.9]} 5. Bg5 {[%clk 0:02:58.8]}
5... Ne4 {[%clk 0:03:00.2]} 6. cxd5 {[%clk 0:02:59]} 6... Nxg5 {[%clk
0:03:00.3]} 7. Nxg5 {[%clk 0:02:59.9]} 7... e6 {[%clk 0:03:00.9]} 8. Nf3 {[%clk
0:02:59.4]} 8... exd5 {[%clk 0:03:01.4]} 9. e3 {[%clk 0:02:59.6]} 9... c5 {[%clk
0:02:53.1]} 10. dxc5 {[%clk 0:02:57.1]} 10... Bxc3+ {[%clk 0:02:48.6]} 11. bxc3
{[%clk 0:02:53.9]} 11... O-O {[%clk 0:02:47.1]} 12. h4 {[%clk 0:02:33.8]} 12...
Qa5 {[%clk 0:02:34.8]} 13. Rc1 {[%clk 0:02:28.6]} 13... Bg4 {[%clk 0:02:29.6]}
14. Qxd5 {[%clk 0:02:25.5]} 14... Rd8 {[%clk 0:02:19.5]} 15. Qb3 {[%clk
0:02:13]} 15... Nd7 {[%clk 0:01:31.9]} 16. Qb4 {[%clk 0:02:05.5]} 16... Qxa2
{[%clk 0:00:54.9]} 17. Qxg4 {[%clk 0:01:29.3]} 17... Ne5 {[%clk 0:00:54.4]} 18.
Bc4 {[%clk 0:01:02.7]} 18... Nxf3+ {[%clk 0:00:25.2]} 19. gxf3 {[%clk
0:01:03.6]} 19... Qd2+ {[%clk 0:00:25.4]} 20. Kf1 {[%clk 0:01:03.6]} 20... Qxc1+
{[%clk 0:00:25.7]} 21. Kg2 {[%clk 0:01:03.7]} 21... Qxc3 {[%clk 0:00:26.4]} 22.
h5 {[%clk 0:01:03.2]} 22... Qf6 {[%clk 0:00:22.4]} 23. Rb1 {[%clk 0:01:02]}
23... Rab8 {[%clk 0:00:20.4]} 24. h6 {[%clk 0:00:54.1]} 24... b6 {[%clk
0:00:16.6]} 25. cxb6 {[%clk 0:00:50.6]} 25... axb6 {[%clk 0:00:17.5]} 26. Rc1
{[%clk 0:00:44]} 26... b5 {[%clk 0:00:15.6]} 27. Bb3 {[%clk 0:00:43.5]} 27... b4
{[%clk 0:00:16]} 28. Rc7 {[%clk 0:00:42.2]} 28... Rf8 {[%clk 0:00:14]} 29. f4
{[%clk 0:00:39.1]} 29... Qb6 {[%clk 0:00:11.5]} 30. Rd7 {[%clk 0:00:29.9]} 30...
Qc6+ {[%clk 0:00:10.1]} 31. Bd5 {[%clk 0:00:29.7]} 31... Qf6 {[%clk 0:00:10.1]}
32. Bb3 {[%clk 0:00:28.6]} 32... Rbd8 {[%clk 0:00:09.2]} 33. Rb7 {[%clk
0:00:27.9]} 33... Rb8 {[%clk 0:00:09.1]} 34. Ra7 {[%clk 0:00:24.7]} 34... Qf5
{[%clk 0:00:05.6]} 35. Qf3 {[%clk 0:00:19.2]} 35... Qc5 {[%clk 0:00:05.5]} 36.
Rd7 {[%clk 0:00:18.5]} 36... Qb6 {[%clk 0:00:01.8]} 37. Qd5 {[%clk 0:00:17.1]}
37... Qf6 {[%clk 0:00:02.3]} 38. Kf3 {[%clk 0:00:16.9]} 38... Qf5 {[%clk
0:00:02.1]} 39. Qc6 {[%clk 0:00:15.4]} 39... Qh3+ {[%clk 0:00:02.4]} 40. Ke2
{[%clk 0:00:14.9]} 40... Qh5+ {[%clk 0:00:02.8]} 41. Kf1 {[%clk 0:00:14.5]}
41... Qb5+ {[%clk 0:00:03]} 42. Qxb5 {[%clk 0:00:14.1]} 42... Rxb5 {[%clk
0:00:03.9]} 43. Ke2 {[%clk 0:00:14]} 43... Rbb8 {[%clk 0:00:04.4]} 44. Rd4
{[%clk 0:00:14]} 44... Rfd8 {[%clk 0:00:04]} 45. Re4 {[%clk 0:00:13.5]} 45...
Re8 {[%clk 0:00:03.9]} 46. Rd4 {[%clk 0:00:13.9]} 46... Red8 {[%clk 0:00:04.5]}
47. Rc4 {[%clk 0:00:14.1]} 47... Kf8 {[%clk 0:00:05]} 48. Rc7 {[%clk 0:00:13.9]}
48... Kg8 {[%clk 0:00:01.3]} 49. Rxf7 {[%clk 0:00:13.3]} 49... Kh8 {[%clk
0:00:01.9]} 50. f5 {[%clk 0:00:11.9]} 50... Rdc8 {[%clk 0:00:02.4]} 51. fxg6
{[%clk 0:00:10.6]} 51... hxg6 {[%clk 0:00:03.3]} 52. Rf6 {[%clk 0:00:07.4]}
52... Rc3 {[%clk 0:00:03.5]} 53. Bd5 {[%clk 0:00:07.4]} 53... b3 {[%clk
0:00:03.9]} 54. Be4 {[%clk 0:00:08]} 54... b2 {[%clk 0:00:04]} 55. Rxg6 {[%clk
0:00:07.9]} 55... Rc1 {[%clk 0:00:04.1]} 56. f4 {[%clk 0:00:06.8]} 56... b1=Q
{[%clk 0:00:04.5]} 57. Bxb1 {[%clk 0:00:06.6]} 57... Rcxb1 {[%clk 0:00:05.4]}
58. Kf3 {[%clk 0:00:07]} 58... R1b6 {[%clk 0:00:05.9]} 59. Rg5 {[%clk
0:00:06.7]} 59... Rxh6 {[%clk 0:00:05.6]} 60. e4 {[%clk 0:00:07.2]} 60... Kh7
{[%clk 0:00:06.1]} 61. e5 {[%clk 0:00:07.3]} 61... Rb3+ {[%clk 0:00:06.5]} 62.
Ke4 {[%clk 0:00:07.4]} 62... Rg6 {[%clk 0:00:07]} 63. Rh5+ {[%clk 0:00:06.9]}
63... Kg7 {[%clk 0:00:07.5]} 64. Rh1 {[%clk 0:00:07.1]} 64... Rg2 {[%clk
0:00:07.1]} 65. Rc1 {[%clk 0:00:05.3]} 65... Rb7 {[%clk 0:00:05.4]} 66. e6
{[%clk 0:00:04.3]} 66... Kf6 {[%clk 0:00:05.2]} 67. Rc6 {[%clk 0:00:03]} 67...
Re7 {[%clk 0:00:05.6]} 68. f5 {[%clk 0:00:02.8]} 68... Rg4+ {[%clk 0:00:05.4]}
69. Kf3 {[%clk 0:00:02.8]} 69... Ra4 {[%clk 0:00:05.4]} 70. Rc5 {[%clk
0:00:02.8]} 70... Rd4 {[%clk 0:00:04.7]} 71. Ke3 {[%clk 0:00:02.5]} 71... Rh4
{[%clk 0:00:04.9]} 72. Kf3 {[%clk 0:00:02.9]} 72... Rg7 {[%clk 0:00:05.2]} 73.
Rb5 {[%clk 0:00:02]} 73... Rh5 {[%clk 0:00:05.6]} 74. Kf4 {[%clk 0:00:01.6]}
74... Rh4+ {[%clk 0:00:05]} 75. Kf3 {[%clk 0:00:01.5]} 75... Rg5 {[%clk
0:00:05.5]} 76. e7 {[%clk 0:00:01.4]} 76... Kxe7 {[%clk 0:00:04.8]} 0-1